fUST/lending_fUST_20260423
["ID","MTS","AMOUNT","RATE_DAILY","PERIOD"]
[420992136,1776873650534,200.0,0.00024658,120]
[420992139,1776873681324,-300.0,9.999e-05,2]
[420992140,1776873681353,-2135.46834551,0.0001,2]
[420992141,1776873681434,-1659.28462429,0.0001,2]
[420992142,1776873692153,200.0,0.00024083,120]
[420992145,1776873711426,-2435.46834551,9.9e-05,10]
[420992153,1776873860352,1500.21848432,0.00024657,120]
[420992154,1776873871761,200.0,0.00021921,120]
[420992161,1776873912810,1444.09,0.00024658,120]
[420992175,1776873957627,4970.54759213,0.00024657,120]
[420992202,1776874171010,200.0,0.00024514,120]
[420992223,1776874232335,-5000.0,9.037e-05,10]
[420992224,1776874232347,-300.0,9.128e-05,2]
[420992225,1776874232357,-1200.0,9.128e-05,2]
[420992226,1776874232780,-300.0,9.128e-05,2]
[420992227,1776874232807,-300.0,9.128e-05,2]
[420992228,1776874232829,-11295.7602294,9.129e-05,2]
[420992229,1776874232843,-150.0,9.367e-05,2]
[420992230,1776874232852,-5000.0,9.605e-05,10]
[420992231,1776874232862,-300.0,9.897e-05,2]
[420992232,1776874232872,-6150.38288846,0.0001,2]
[420992233,1776874232880,-291.86482469,0.0001,2]
[420992234,1776874232889,-580.08449639,0.0001,2]
[420992235,1776874232899,-15067.7649039,0.0001,2]
[420992236,1776874232910,-964.89145865,0.0001,2]
[420992237,1776874232921,-7967.34363745,0.0001,2]
[420992238,1776874232931,-675.46889408,0.0001,2]
[420992239,1776874232940,-428.5313742,0.00010618,2]
[420992240,1776874232949,-177.0,0.00011367,2]
[420992241,1776874232959,-500.0,0.00012499,2]
[420992242,1776874232968,-500.0,0.00012499,2]
[420992243,1776874232978,-500.0,0.00012499,2]
[420992244,1776874232987,-500.0,0.00012499,2]
[420992245,1776874232997,-616.30928723,0.00012499,2]
[420992246,1776874233006,-500.0,0.00012499,2]
[420992247,1776874233016,-500.0,0.00012499,2]
[420992248,1776874233025,-500.0,0.00012499,2]
[420992249,1776874233035,-500.0,0.00012499,2]
[420992250,1776874233044,-500.0,0.00012499,2]
[420992251,1776874233053,-500.0,0.00012499,2]
[420992252,1776874233063,-500.0,0.00012499,2]
[420992253,1776874233072,-500.0,0.00012499,2]
[420992254,1776874233081,-500.0,0.00012499,2]
[420992255,1776874233091,-500.0,0.00012499,2]
[420992256,1776874233100,-500.0,0.00012499,2]
[420992257,1776874233110,-500.0,0.00012499,2]
[420992258,1776874233121,-500.0,0.00012499,2]
[420992259,1776874233131,-500.0,0.00012499,2]
[420992260,1776874233140,-169.91309272,0.00012499,2]
[420992261,1776874233150,-500.0,0.00012499,2]
[420992262,1776874233159,-500.0,0.00012499,2]
[420992263,1776874233169,-500.0,0.00012499,2]
[420992264,1776874233178,-500.0,0.00012499,2]
[420992265,1776874233187,-500.0,0.00012499,2]
[420992266,1776874233197,-11773.07656676,0.000125,2]
[420992267,1776874233206,-1398.88962671,0.0001283,2]
[420992268,1776874233216,-204.0,0.00013367,2]
[420992269,1776874233225,-1000.0,0.00013699,2]
[420992270,1776874233234,-231.0,0.00015367,2]
[420992271,1776874233244,-258.0,0.00017367,2]
[420992272,1776874233253,-184.0,0.0001759,2]
[420992273,1776874233263,-535.68,0.00017682,2]
[420992274,1776874233273,-969.37,0.00017814,2]
[420992275,1776874233283,-891.22,0.00018084,2]
[420992276,1776874233292,-484.3513227,0.00018247,2]
[420992277,1776874233301,-500.0,0.00018773,2]
[420992278,1776874233311,-500.0,0.00018799,2]
[420992279,1776874233320,-160.85826751,0.00018799,2]
[420992280,1776874233329,-27320.97556754,0.000188,2]
[420992281,1776874233341,-1454.63242915,0.000188,2]
[420992304,1776874239254,-500.0,0.00012499,2]
[420992305,1776874239264,-280.0,0.000188,2]
[420992306,1776874239276,-1285.10008273,0.000188,2]
[420992318,1776874241272,-4305.8,0.000188,2]
[420992336,1776874243684,-1142.40884553,0.00012374,10]
[420992337,1776874243694,-34005.22474258,0.000188,2]
[420992338,1776874243705,-1416.8284121,0.000188,2]
[420992343,1776874246659,-9174.83275232,0.000188,2]
[420992344,1776874246825,-131332.73422258,0.000188,2]
[420992345,1776874246835,-305.98,0.00018808,2]
[420992346,1776874246844,-199.99999901,0.00019,2]
[420992347,1776874246853,-565.62010902,0.00019124,2]
[420992348,1776874246862,-300.0,0.00019175,2]
[420992349,1776874246872,-300.0,0.00019175,2]
[420992350,1776874246881,-300.0,0.00019175,2]
[420992351,1776874246892,-300.0,0.00019175,2]
[420992352,1776874246901,-300.0,0.00019175,2]
[420992353,1776874246910,-300.0,0.00019175,2]
[420992354,1776874246920,-300.0,0.00019175,2]
[420992355,1776874246930,-300.0,0.00019175,2]
[420992356,1776874246939,-300.0,0.00019175,2]
[420992357,1776874246949,-300.0,0.00019175,2]
[420992358,1776874246958,-508.87185706,0.000193,2]
[420992359,1776874246967,-1000.0,0.00019321,2]
[420992360,1776874246977,-285.0,0.00019367,2]
[420992361,1776874246986,-151.0,0.0001946,2]
[420992362,1776874246996,-151.0,0.0001946,2]
[420992363,1776874247006,-151.0,0.0001946,2]
[420992364,1776874247016,-151.0,0.0001946,2]
[420992365,1776874247025,-206.99369548,0.0001946,2]
[420992366,1776874247034,-151.0,0.0001946,2]
[420992367,1776874247044,-151.0,0.0001946,2]
[420992368,1776874247053,-151.0,0.0001946,2]
[420992369,1776874247063,-151.0,0.0001946,2]
[420992370,1776874247072,-151.0,0.0001946,2]
[420992371,1776874247081,-300.89714103,0.0001946,2]
[420992372,1776874247091,-70699.23700289,0.000198,14]
[420992373,1776874247100,-300.0,0.00019868,2]
[420992374,1776874247110,-1500.0,0.00019868,2]
[420992375,1776874247119,-11549.3713782,0.00019876,2]
[420992376,1776874247129,-1596.1360144,0.00019876,2]
[420992377,1776874247138,-155.0,0.0002,2]
[420992378,1776874247148,-3995.44490135,0.0002,2]
[420992379,1776874247158,-10000.0,0.0002,2]
[420992380,1776874247170,-215.49805896,0.0002,2]
[420992381,1776874247180,-411.0,0.0002,2]
[420992382,1776874247189,-254.0,0.0002,2]
[420992383,1776874247199,-300.0,0.0002,2]
[420992384,1776874247208,-400.0,0.0002,2]
[420992385,1776874247218,-300.0,0.0002,4]
[420992386,1776874247227,-834.0,0.0002,2]
[420992387,1776874247236,-3995.44490135,0.000202,2]
[420992388,1776874247245,-3995.44490135,0.000204,2]
[420992389,1776874247255,-2000.0,0.00020416,2]
[420992390,1776874247264,-3995.44490135,0.000206,2]
[420992391,1776874247273,-200.0,0.00020625,3]
[420992392,1776874247283,-200.0,0.00020625,3]
[420992393,1776874247293,-200.0,0.00020625,3]
[420992394,1776874247302,-200.13096774,0.00020625,3]
[420992395,1776874247311,-3995.44490135,0.000208,2]
[420992396,1776874247320,-643.847,0.00020854,2]
[420992397,1776874247329,-1688.9,0.000209,2]
[420992398,1776874247337,-2500.0,0.00020964,2]
[420992399,1776874247346,-466.0,0.00021,2]
[420992400,1776874247355,-161.0,0.00021,2]
[420992401,1776874247363,-155.0,0.00021,2]
[420992402,1776874247372,-1309.1555865,0.00021,2]
[420992403,1776874247443,-1257.029997,0.00021,2]
[420992412,1776874351333,200.0,0.00024588,120]
[420992419,1776874591794,200.0,0.00023659,120]
[420992420,1776874651541,200.0,0.00022749,120]
[420992421,1776874711258,200.0,0.00024256,120]
[420992422,1776874731954,461.0426277,0.00019789,120]
[420992423,1776874732485,461.0426277,0.00019985,120]
[420992424,1776874736479,278.2103589,0.00019789,120]
[420992425,1776874736953,278.2103589,0.00019985,120]
[420992426,1776874743469,918.70966276,0.00019796,120]
[420992427,1776874743960,918.70966276,0.0001989,120]
[420992428,1776874750182,2524.67130843,0.00019761,120]
[420992429,1776874757117,2524.67130843,0.00019817,120]
[420992430,1776874757628,2524.67130843,0.00019873,120]
[420992431,1776874758161,2524.67130843,0.00019929,120]
[420992432,1776874758660,2524.67130843,0.00019985,120]
[420992433,1776874761397,2700.73130205,0.00019761,120]
[420992434,1776874762132,2700.73130205,0.00019817,120]
[420992435,1776874762421,2700.73130205,0.00019873,120]
[420992436,1776874763049,2700.73130205,0.00019929,120]
[420992437,1776874770806,200.0,0.00023918,120]
[420992439,1776874835506,158.0,0.0001879,120]
[420992440,1776874837514,158.0,0.00019729,120]
[420992441,1776874839221,158.0,0.00020716,120]
[420992442,1776874840659,158.0,0.00021751,120]
[420992443,1776874890517,200.0,0.00022381,120]
[420992444,1776874895704,1632.0,0.00024658,120]
[420992445,1776874944505,1000.0,0.00024657,120]
[420992446,1776874950711,200.0,0.0002394,120]
[420992447,1776874955101,256.0,0.00019013,120]
[420992448,1776874956395,256.0,0.00019963,120]
[420992449,1776874957769,256.0,0.00020961,120]
[420992450,1776874959074,256.0,0.0002201,120]
[420992451,1776874960385,256.0,0.0002311,120]
[420992452,1776874960683,1000.0,0.00024657,120]
[420992453,1776874961627,256.0,0.00024266,120]
[420992454,1776874973887,500.0,0.00024657,120]
[420992455,1776874995317,600.0,0.00024657,120]
[420992599,1776875131252,200.0,0.00023677,120]
[420992625,1776875234048,459.81867153,0.00018531,120]
[420992626,1776875234801,459.81867153,0.00018635,120]
[420992627,1776875370526,200.0,0.00023112,120]
[420992635,1776875432554,-1004.47234941,0.00010462,10]
[420992636,1776875432613,-2094.96246121,0.00010462,10]
[420992637,1776875432625,-1900.56518938,0.00010462,10]
[420992638,1776875432634,-150.0,0.00010675,2]
[420992639,1776875432644,-2100.0,0.00010959,2]
[420992640,1776875432653,-177.0,0.00012675,2]
[420992641,1776875432663,-1000.0,0.00013699,2]
[420992642,1776875432673,-204.0,0.00014675,2]
[420992643,1776875432682,-658.0476262,0.00015081,2]
[420992644,1776875432692,-260.7535738,0.00015396,2]
[420992645,1776875432702,-265.84,0.00015906,2]
[420992646,1776875432711,-159.5,0.00016398,2]
[420992647,1776875432720,-262.88,0.00016484,2]
[420992648,1776875432730,-182.25,0.00016614,2]
[420992649,1776875432739,-231.0,0.00016675,2]
[420992650,1776875432748,-630.95,0.00016882,2]
[420992651,1776875432757,-459.81867153,0.00017187,2]
[420992652,1776875432766,-461.0426277,0.00017238,2]
[420992653,1776875432776,-918.70966276,0.00017238,2]
[420992654,1776875432785,-278.2103589,0.00017238,2]
[420992655,1776875432794,-2700.73130205,0.00017238,2]
[420992656,1776875432804,-2524.67130843,0.00017238,2]
[420992657,1776875432813,-150.0,0.00017246,2]
[420992658,1776875432823,-459.81867153,0.00017291,2]
[420992659,1776875432832,-4493.29848707,0.00017294,2]
[420992660,1776875432841,-2524.67130843,0.00017294,2]
[420992661,1776875432851,-2700.73130205,0.00017294,2]
[420992662,1776875432860,-87581.3712903,0.00017319,2]
[420992663,1776875432869,-2233.91860262,0.00017328,2]
[420992664,1776875432878,-5269.39086195,0.00017328,2]
[420992665,1776875432887,-918.70966276,0.00017333,2]
[420992666,1776875432896,-2524.67130843,0.0001735,2]
[420992667,1776875432906,-2700.73130205,0.0001735,2]
[420992668,1776875432915,-459.81867153,0.00017394,7]
[420992669,1776875432924,-2524.67130843,0.00017406,2]
[420992670,1776875432934,-2700.73130205,0.00017406,2]
[420992671,1776875432943,-500.0,0.00017417,2]
[420992672,1776875432952,-500.0,0.00017417,2]
[420992673,1776875432961,-289.90980396,0.00017417,2]
[420992674,1776875432970,-500.0,0.00017417,2]
[420992675,1776875432980,-500.0,0.00017417,2]
[420992676,1776875432989,-500.0,0.00017417,2]
[420992677,1776875432998,-500.0,0.00017417,2]
[420992678,1776875433008,-500.0,0.00017417,2]
[420992679,1776875433018,-500.0,0.00017417,2]
[420992680,1776875433027,-500.0,0.00017417,2]
[420992681,1776875433037,-500.0,0.00017417,2]
[420992682,1776875433046,-500.0,0.00017417,2]
[420992683,1776875433056,-500.0,0.00017417,2]
[420992684,1776875433065,-500.0,0.00017417,2]
[420992685,1776875433075,-453.80543596,0.00017417,2]
[420992686,1776875433084,-500.0,0.00017417,2]
[420992687,1776875433094,-346.03223789,0.00017417,2]
[420992688,1776875433103,-500.0,0.00017417,2]
[420992689,1776875433113,-500.0,0.00017417,2]
[420992690,1776875433122,-500.0,0.00017417,2]
[420992691,1776875433131,-500.0,0.00017417,2]
[420992692,1776875433141,-500.0,0.00017417,2]
[420992693,1776875433150,-500.0,0.00017417,2]
[420992694,1776875433159,-500.0,0.00017417,2]
[420992695,1776875433169,-500.0,0.00017417,2]
[420992696,1776875433178,-500.0,0.00017417,2]
[420992697,1776875433187,-500.0,0.00017417,2]
[420992698,1776875433196,-500.0,0.00017417,2]
[420992699,1776875433205,-500.0,0.00017417,2]
[420992700,1776875433215,-500.0,0.00017417,2]
[420992701,1776875433225,-500.0,0.00017417,2]
[420992702,1776875433234,-500.0,0.00017417,2]
[420992703,1776875433243,-500.0,0.00017417,2]
[420992704,1776875433253,-500.0,0.00017417,2]
[420992705,1776875433262,-500.0,0.00017417,2]
[420992706,1776875433272,-500.0,0.00017417,2]
[420992707,1776875433281,-500.0,0.00017417,2]
[420992708,1776875433291,-500.0,0.00017417,2]
[420992709,1776875433300,-500.0,0.00017417,2]
[420992710,1776875433309,-500.0,0.00017417,2]
[420992711,1776875433319,-500.0,0.00017417,2]
[420992712,1776875433329,-500.0,0.00017417,2]
[420992713,1776875433338,-500.0,0.00017417,2]
[420992714,1776875433347,-500.0,0.00017417,2]
[420992715,1776875433356,-500.0,0.00017417,2]
[420992716,1776875433366,-500.0,0.00017417,2]
[420992717,1776875433375,-500.0,0.00017417,2]
[420992718,1776875433384,-500.0,0.00017417,2]
[420992719,1776875433394,-500.0,0.00017417,2]
[420992720,1776875433403,-500.0,0.00017417,2]
[420992721,1776875433413,-500.0,0.00017417,2]
[420992722,1776875433422,-500.0,0.00017417,2]
[420992723,1776875433431,-500.0,0.00017417,2]
[420992724,1776875433440,-377.29485108,0.00017417,2]
[420992725,1776875433450,-500.0,0.00017417,2]
[420992726,1776875433459,-500.0,0.00017418,2]
[420992727,1776875433469,-616.80242783,0.00017418,2]
[420992728,1776875433478,-572.71655579,0.00017418,2]
[420992729,1776875433487,-572.71655579,0.00017418,2]
[420992730,1776875433497,-572.71655579,0.00017418,2]
[420992731,1776875433506,-572.71655579,0.00017418,2]
[420992732,1776875433515,-572.71655579,0.00017418,2]
[420992733,1776875433524,-572.71655579,0.00017418,2]
[420992734,1776875433534,-572.71655579,0.00017418,2]
[420992735,1776875433543,-572.71655579,0.00017418,2]
[420992736,1776875433552,-572.71655579,0.00017418,2]
[420992737,1776875433562,-572.71655579,0.00017418,2]
[420992738,1776875433571,-572.71655579,0.00017418,2]
[420992739,1776875433580,-572.71655579,0.00017418,2]
[420992740,1776875433590,-572.71655579,0.00017418,2]
[420992741,1776875433599,-572.71655579,0.00017418,2]
[420992742,1776875433608,-572.71655579,0.00017418,2]
[420992743,1776875433618,-572.71655579,0.00017418,2]
[420992744,1776875433629,-572.71655579,0.00017418,2]
[420992745,1776875433639,-572.71655579,0.00017418,2]
[420992746,1776875433648,-572.71655579,0.00017418,2]
[420992747,1776875433657,-572.71655579,0.00017418,2]
[420992748,1776875433667,-572.71655579,0.00017418,2]
[420992749,1776875433676,-601.35238358,0.00017418,2]
[420992750,1776875433685,-601.35238358,0.00017418,2]
[420992751,1776875433695,-601.35238358,0.00017418,2]
[420992752,1776875433704,-601.35238358,0.00017418,2]
[420992753,1776875433713,-601.35238358,0.00017418,2]
[420992754,1776875433722,-601.35238358,0.00017418,2]
[420992755,1776875433731,-601.35238358,0.00017418,2]
[420992756,1776875433740,-601.35238358,0.00017418,2]
[420992757,1776875433749,-500.0,0.00017418,2]
[420992758,1776875433759,-500.0,0.00017418,2]
[420992759,1776875433768,-500.0,0.00017418,2]
[420992760,1776875433777,-500.0,0.00017418,2]
[420992761,1776875433786,-391.27317984,0.00017418,2]
[420992762,1776875433795,-299222.69099405,0.00017419,2]
[420992763,1776875433808,-913.64676378,0.00017419,2]
[420992764,1776875433819,-10028.32921779,0.00017419,2]
[420992765,1776875433830,-38354.14888406,0.00017419,2]
[420992766,1776875433841,-4674.09999998,0.00017419,2]
[420992767,1776875433852,-440.41335325,0.00017419,2]
[420992768,1776875433863,-429.39541939,0.00017419,2]
[420992769,1776875433873,-2350.0684805,0.00017419,2]
[420992770,1776875433884,-1012.27440141,0.00017419,2]
[420992771,1776875433895,-37073.78427462,0.00017419,2]
[420992772,1776875433907,-2994.07694886,0.00017419,2]
[420992773,1776875433918,-3760.67818282,0.00017419,2]
[420992774,1776875433929,-15913.33754804,0.00017419,2]
[420992846,1776875438897,-279.67518925,0.00017419,2]
[420992847,1776875438908,-789.0,0.00017419,2]
[420992848,1776875439062,-19031.75,0.00017419,2]
[420992865,1776875447446,-5000.0,0.00017244,10]
[420992866,1776875447455,-12599.999976,0.00017419,2]
[420992867,1776875447467,-644.0,0.00017419,2]
[420992868,1776875447482,-2374.232,0.00017419,2]
[420992880,1776875562473,-556.89760771,0.00016057,2]
[420992881,1776875562507,-119.09002853,0.00016159,2]
[420992882,1776875611169,200.0,0.00022993,120]
[420992883,1776875730480,200.0,0.00024638,120]
[420992886,1776875910519,200.0,0.00024171,120]
[420992891,1776875970725,200.0,0.00023289,120]
[420992898,1776876030824,200.0,0.00023925,120]
[420992900,1776876035870,450.0,0.00024658,120]
[420992901,1776876297640,1343.79,0.00024657,120]
[420992902,1776876391387,200.0,0.00023793,120]
[420992903,1776876454871,574.63,0.00024658,120]
[420992904,1776876570471,200.0,0.00024393,120]
[420992905,1776876630666,200.0,0.00023994,120]
[420992925,1776876631780,-253.08869634,8.509e-05,10]
[420992926,1776876631792,-1221.0,8.509e-05,10]
[420992927,1776876631804,-1353.47284425,8.509e-05,10]
[420992930,1776876631833,-566.01503087,8.509e-05,10]
[420992942,1776876638961,-2278.57772717,8.424e-05,10]
[420992943,1776876638973,-1986.69699678,8.424e-05,10]
[420992944,1776876638983,-1606.42342854,8.509e-05,10]
[420992945,1776876638991,-1200.0,8.681e-05,2]
[420992946,1776876639001,-150.0,8.814e-05,2]
[420992947,1776876639010,-300.0,8.857e-05,2]
[420992948,1776876639019,-195.99,9.314e-05,2]
[420992949,1776876639028,-300.0,9.404e-05,2]
[420992950,1776876639038,-300.0,9.404e-05,2]
[420992951,1776876639047,-300.0,9.404e-05,2]
[420992952,1776876639057,-300.0,9.404e-05,2]
[420992953,1776876639066,-300.0,9.404e-05,2]
[420992954,1776876639076,-300.0,9.404e-05,2]
[420992955,1776876639086,-300.0,9.404e-05,2]
[420992956,1776876639095,-300.0,9.404e-05,2]
[420992957,1776876639105,-300.0,9.404e-05,2]
[420992958,1776876639114,-300.0,9.404e-05,2]
[420992959,1776876639123,-300.0,9.404e-05,2]
[420992960,1776876639132,-300.0,9.404e-05,2]
[420992961,1776876639142,-300.0,9.404e-05,2]
[420992962,1776876639151,-300.0,9.404e-05,2]
[420992963,1776876639160,-300.0,9.404e-05,2]
[420992964,1776876639169,-500.0,9.41e-05,2]
[420992965,1776876639179,-532.07661716,9.41e-05,2]
[420992966,1776876639188,-210.05986184,9.41e-05,2]
[420992967,1776876639197,-500.41208354,9.41e-05,2]
[420992968,1776876639206,-500.0,9.41e-05,2]
[420992969,1776876639215,-500.0,9.41e-05,2]
[420992970,1776876639225,-500.0,9.41e-05,2]
[420992971,1776876639234,-500.0,9.41e-05,2]
[420992972,1776876639243,-213.17334923,9.41e-05,2]
[420992973,1776876639252,-506.00419315,9.41e-05,2]
[420992974,1776876639262,-501.22010438,9.41e-05,2]
[420992975,1776876639271,-362.36590693,9.41e-05,2]
[420992976,1776876639280,-500.82983759,9.41e-05,2]
[420992977,1776876639290,-167.03497424,9.41e-05,2]
[420992978,1776876639299,-262.0,9.743e-05,2]
[420992979,1776876639308,-500.0,9.958e-05,2]
[420992980,1776876639318,-1000.0,9.958e-05,2]
[420992981,1776876639327,-1500.0,0.00010506,2]
[420992982,1776876639336,-177.0,0.00010814,2]
[420992983,1776876639345,-250.0,0.00011357,2]
[420992984,1776876639355,-204.0,0.00012814,2]
[420992985,1776876639364,-181.24,0.00013626,2]
[420992986,1776876639373,-1000.0,0.00013699,2]
[420992987,1776876639382,-165.8063553,0.00014273,2]
[420992988,1776876639392,-231.0,0.00014814,2]
[420992989,1776876639401,-250.0,0.00014834,2]
[420992990,1776876639410,-581.81,0.0001569,2]
[420992991,1776876639419,-1046.84,0.0001569,2]
[420992992,1776876639428,-575.25766231,0.0001569,2]
[420992993,1776876639437,-845.12,0.0001569,2]
[420992994,1776876639446,-1000.0,0.0001569,2]
[420992995,1776876639455,-1000.0,0.0001569,2]
[420992996,1776876639464,-500.0,0.0001569,2]
[420992997,1776876639473,-1928.43,0.0001569,2]
[420992998,1776876639482,-535.05551816,0.0001569,2]
[420992999,1776876639491,-2552.99,0.0001569,2]
[420993000,1776876639500,-500.0,0.0001569,2]
[420993001,1776876639510,-1000.0,0.0001569,2]
[420993002,1776876639520,-1000.0,0.0001569,2]
[420993003,1776876639529,-1971.284034,0.0001569,2]
[420993004,1776876639538,-265.39,0.00015868,2]
[420993005,1776876639548,-196.41,0.00015885,2]
[420993006,1776876639557,-500.0,0.00015941,2]
[420993007,1776876639566,-288.17,0.00016,2]
[420993009,1776876639575,-500.0,0.00016159,2]
[420993012,1776876639585,-500.0,0.00016159,2]
[420993013,1776876639594,-834.08,0.00016159,2]
[420993014,1776876639603,-1023.25,0.00016159,2]
[420993015,1776876639612,-904.20154047,0.0001616,2]
[420993016,1776876639621,-500.0,0.0001616,2]
[420993017,1776876639630,-378.26,0.0001627,2]
[420993018,1776876639639,-180.38482147,0.00016277,2]
[420993019,1776876639649,-196.41,0.00016323,2]
[420993020,1776876639658,-1971.284034,0.00016351,2]
[420993021,1776876639667,-500.0,0.00016434,2]
[420993022,1776876639676,-226.58,0.00016637,2]
[420993023,1776876639686,-500.0,0.00016708,2]
[420993024,1776876639695,-258.0,0.00016814,2]
[420993025,1776876639704,-245.52,0.00016828,2]
[420993026,1776876639714,-500.0,0.00016911,2]
[420993027,1776876639722,-500.0,0.00016911,2]
[420993028,1776876639732,-500.0,0.00016911,2]
[420993029,1776876639741,-500.0,0.00016911,2]
[420993030,1776876639751,-500.0,0.00016911,2]
[420993031,1776876639761,-386.95065988,0.00016911,2]
[420993032,1776876639771,-500.0,0.00016911,2]
[420993033,1776876639780,-500.0,0.00016911,2]
[420993034,1776876639790,-387.71233861,0.00016911,2]
[420993035,1776876639800,-534.29587735,0.00016911,2]
[420993036,1776876639809,-3931.63617623,0.00016912,2]
[420993037,1776876639818,-5318.48199656,0.00016912,2]
[420993038,1776876639827,-500.0,0.00016982,2]
[420993039,1776876639836,-287.08,0.0001699,2]
[420993040,1776876639846,-500.0,0.00016999,2]
[420993041,1776876639855,-620.08320781,0.00016999,2]
[420993042,1776876639864,-602.75441435,0.00016999,2]
[420993043,1776876639873,-620.08320781,0.00016999,2]
[420993044,1776876639882,-620.08320781,0.00016999,2]
[420993045,1776876639892,-620.08320781,0.00016999,2]
[420993046,1776876639901,-500.0,0.00016999,2]
[420993047,1776876639911,-620.08320781,0.00016999,2]
[420993048,1776876639920,-620.08320781,0.00016999,2]
[420993049,1776876639930,-620.08320781,0.00016999,2]
[420993050,1776876639939,-620.08320781,0.00016999,2]
[420993051,1776876639949,-500.0,0.00016999,2]
[420993052,1776876639958,-620.08320781,0.00016999,2]
[420993053,1776876639967,-620.08320781,0.00016999,2]
[420993054,1776876639976,-404.81825837,0.00016999,2]
[420993055,1776876639985,-620.08320781,0.00016999,2]
[420993056,1776876639995,-620.08320781,0.00016999,2]
[420993057,1776876640005,-620.08320781,0.00016999,2]
[420993058,1776876640014,-620.08320781,0.00016999,2]
[420993059,1776876640023,-620.08320781,0.00016999,2]
[420993060,1776876640034,-620.08320781,0.00016999,2]
[420993061,1776876640042,-620.08320781,0.00016999,2]
[420993062,1776876640052,-620.08320781,0.00016999,2]
[420993063,1776876640061,-620.08320781,0.00016999,2]
[420993064,1776876640071,-620.08320781,0.00016999,2]
[420993065,1776876640080,-620.08320781,0.00016999,2]
[420993066,1776876640089,-389667.35477569,0.00017,2]
[420993067,1776876640102,-6375.29018436,0.00017,2]
[420993068,1776876640112,-2004.50863312,0.00017,2]
[420993069,1776876640123,-9393.94257397,0.00017,2]
[420993070,1776876640134,-1292558.90383286,0.00017,2]
[420993071,1776876640143,-1971.284034,0.00017011,2]
[420993072,1776876640153,-802.2,0.00017099,2]
[420993073,1776876640162,-581.81,0.00017099,2]
[420993074,1776876640171,-1046.84,0.00017099,2]
[420993075,1776876640180,-845.12,0.00017099,2]
[420993076,1776876640190,-500.0,0.00017099,2]
[420993077,1776876640199,-1928.43,0.00017099,2]
[420993078,1776876640208,-2552.99,0.00017099,2]
[420993079,1776876640218,-500.0,0.00017099,2]
[420993080,1776876640227,-1299.01442327,0.000171,2]
[420993081,1776876640237,-3258.05016671,0.000171,2]
[420993082,1776876640246,-3574.68099161,0.000171,2]
[420993083,1776876640256,-2941.41934191,0.000171,2]
[420993084,1776876640266,-3270.67987897,0.000171,2]
[420993085,1776876640276,-349.86085487,0.000171,2]
[420993086,1776876640286,-151.0,0.000171,2]
[420993087,1776876640295,-151.0,0.000171,2]
[420993088,1776876640304,-151.0,0.000171,2]
[420993089,1776876640314,-151.0,0.000171,2]
[420993090,1776876640323,-151.0,0.000171,2]
[420993091,1776876640333,-151.0,0.000171,2]
[420993092,1776876640342,-151.0,0.000171,2]
[420993093,1776876640352,-151.0,0.000171,2]
[420993094,1776876640360,-151.0,0.000171,2]
[420993095,1776876640370,-151.0,0.000171,2]
[420993096,1776876640378,-160.0,0.000171,2]
[420993097,1776876640387,-160.0,0.000171,2]
[420993098,1776876640396,-228.50195276,0.000171,2]
[420993099,1776876640406,-151.0,0.000171,2]
[420993100,1776876640415,-151.0,0.000171,2]
[420993101,1776876640424,-151.0,0.000171,2]